bitfinex-derivatives/quotes_SOLF0:USTF0_20250109
["timestamp","ask_amount","ask_price","bid_price","bid_amount"]
[1736449267370,12.19279545,188.05,187.93,1.5628]
[1736449269570,12.19279545,188.08,187.94,12.19279545]
[1736449269872,2.6592,188.04,187.99,2.6597]
[1736449270074,12.19279545,188.08,187.99,2.6597]
[1736449270370,4.84,188.07,187.93,1.5628]
[1736449270765,12.19279545,188.08,187.94,12.19279545]
[1736449271068,82.98,188.15,187.97,12.19279545]
[1736449271275,12.19279545,188.12,188.0,12.19279545]
[1736449271569,2.6586,188.08,188.04,2.6591]
[1736449271874,12.19279545,188.09,187.96,12.19279545]
[1736449272073,2.6588,188.07,188.03,2.6592]
[1736449272674,12.19279545,188.09,187.94,3.2363]
[1736449272875,12.19279545,188.06,187.94,15.42909545]
[1736449273274,4.84,188.07,187.97,2.66]
[1736449273576,17.03279545,188.07,187.94,15.42909545]
[1736449273773,2.6595,188.02,187.98,2.6599]
[1736449275175,2.6593,188.03,187.94,15.42909545]
[1736449275679,17.03279545,188.07,187.94,15.42909545]
[1736449276077,17.03279545,188.07,187.97,2.6601]
[1736449276677,2.6596,188.01,187.97,2.6601]
[1736449277079,17.03279545,188.07,187.97,2.6601]
[1736449277580,12.19279545,188.04,187.94,1.6178]
[1736449277878,12.19279545,188.01,187.94,1.6178]
[1736449278077,2.66,187.98,187.94,4.2782]
[1736449278581,2.6598,187.99,187.94,4.2782]
[1736449278776,12.19279545,188.04,187.95,2.6603]
[1736449279278,12.19279545,188.04,187.94,1.6178]
[1736449279685,2.6599,187.99,187.94,1.6178]
[1736449280082,2.6599,187.99,187.95,2.6603]
[1736449280782,2.6596,188.01,187.94,1.6178]
[1736449280981,17.03279545,188.07,187.94,13.81059545]
[1736449281283,2.6592,188.04,187.99,2.6598]
[1736449281586,12.19279545,188.07,187.99,2.6598]
[1736449282083,2.659,188.05,187.99,2.6598]
[1736449282383,12.19279545,188.07,187.99,2.6598]
[1736449282683,2.6594,188.02,187.99,2.6598]
[1736449283879,12.19279545,188.07,188.0,2.6596]
[1736449283880,2.6591,188.04,188.0,2.6596]
[1736449284185,12.19279545,188.07,188.0,2.6596]
[1736449284784,12.19279545,188.1,187.98,12.19279545]
[1736449284985,17.03279545,188.13,188.01,12.19279545]
[1736449285283,17.03279545,188.13,188.02,1.6071]
[1736449285879,17.03279545,188.13,188.04,2.6591]
[1736449287282,2.6586,188.08,188.04,2.6591]
[1736449288090,2.6584,188.09,188.05,2.6588]
[1736449290096,12.19279545,188.1,188.02,3.193]
[1736449290993,2.6589,188.06,188.02,5.8523]
[1736449291193,12.19279545,188.1,187.96,1.5717]
[1736449291394,12.19279545,188.1,187.97,1.483]
[1736449291889,87.82,188.15,187.97,1.483]
[1736449291890,12.19279545,188.07,187.97,1.483]
[1736449292697,2.6591,188.04,187.98,2.6598]
[1736449292896,12.19279545,188.07,187.97,1.483]
[1736449293298,2.6593,188.03,187.99,2.6598]
[1736449294001,12.19279545,188.07,187.99,2.6598]
[1736449294195,12.19279545,188.07,187.97,1.483]
[1736449296000,12.19279545,188.07,187.99,2.6597]
[1736449296898,12.19279545,188.07,187.97,1.483]
[1736449297498,12.19279545,188.07,187.99,2.6598]
[1736449297797,2.6593,188.03,187.99,2.6598]
[1736449298399,2.6594,188.02,187.99,2.6598]
[1736449298895,2.6594,188.02,187.97,1.483]
[1736449299102,2.6594,188.02,187.98,2.6599]
[1736449300494,2.6595,188.01,187.98,2.6599]
[1736449301599,12.19279545,188.07,187.97,1.483]
[1736449302497,12.19279545,188.07,188.01,2.6594]
[1736449302498,2.6591,188.04,188.01,2.6594]
[1736449302698,12.19279545,188.07,187.97,1.483]
[1736449302899,2.6592,188.04,188.01,2.6595]
[1736449306798,2.6592,188.04,187.97,1.483]
[1736449306993,2.6592,188.04,188.02,2.6594]
[1736449308395,2.6592,188.04,188.01,2.6595]
[1736449310803,2.6593,188.03,187.99,2.6597]
[1736449311001,12.19279545,188.07,187.99,2.6597]
[1736449311202,12.19279545,188.07,187.97,1.483]
[1736449311503,12.19279545,188.1,187.97,1.483]
[1736449311901,12.19279545,188.1,187.98,12.19279545]
[1736449312102,2.6589,188.06,188.03,2.6592]
[1736449312601,5.3144,188.18,188.02,12.19279545]
[1736449312903,12.19279545,188.19,188.05,12.19279545]
[1736449313099,2.6573,188.17,188.08,12.19279545]
[1736449313405,12.19279545,188.22,188.08,12.19279545]
[1736449313605,2.6573,188.17,188.13,2.6578]
[1736449314103,2.6571,188.18,188.13,2.6577]
[1736449314406,12.19279545,188.22,188.08,12.19279545]
[1736449316305,12.19279545,188.22,188.11,12.19279545]
[1736449316495,12.19279545,188.22,188.15,2.6575]
[1736449317696,2.6568,188.2,188.15,2.6575]
[1736449317902,2.6568,188.2,188.16,2.6574]
[1736449320504,12.19279545,188.28,188.14,12.19279545]
[1736449320711,17.03279545,188.28,188.15,1.6046]
[1736449320902,12.19279545,188.25,188.15,1.6046]
[1736449321106,12.19279545,188.22,188.12,3.1648]
[1736449321710,2.6571,188.18,188.14,2.6576]
[1736449321906,12.19279545,188.22,188.12,3.1648]
[1736449322411,2.6571,188.19,188.15,2.6575]
[1736449322611,12.19279545,188.22,188.12,3.1648]
[1736449323210,2.6571,188.18,188.12,3.1648]
[1736449324212,5.3108,188.31,188.12,3.1648]
[1736449324412,12.19279545,188.29,188.17,12.19279545]
[1736449324612,12.19279545,188.29,188.22,2.6565]
[1736449324815,95.19279545,188.32,188.17,12.19279545]
[1736449325010,95.19279545,188.32,188.2,12.19279545]
[1736449325313,83.0,188.32,188.26,2.656]
[1736449325516,2.6555,188.3,188.26,2.656]
[1736449325706,2.6555,188.3,188.25,2.6561]
[1736449326316,2.6555,188.3,188.26,2.6559]
[1736449326516,2.6553,188.31,188.23,12.19279545]
[1736449326714,4.84,188.34,188.23,12.19279545]
[1736449327215,2.6553,188.31,188.23,12.19279545]
[1736449327410,2.6553,188.31,188.26,2.6559]
[1736449327613,2.6553,188.31,188.23,12.19279545]
[1736449328014,2.6553,188.31,188.26,2.6559]
[1736449328614,2.6555,188.3,188.26,2.6559]
[1736449328817,12.19279545,188.35,188.26,2.6559]
[1736449329319,2.6553,188.31,188.27,2.6558]
[1736449330119,2.6555,188.3,188.23,12.19279545]
[1736449330321,12.19279545,188.35,188.23,12.19279545]
[1736449330515,12.19279545,188.32,188.21,3.0867]
[1736449330715,12.19279545,188.32,188.22,2.6565]
[1736449330916,12.19279545,188.32,188.21,3.0867]
[1736449331514,2.656,188.26,188.23,2.6564]
[1736449331914,12.19279545,188.29,188.17,12.19279545]
[1736449332115,2.6561,188.26,188.2,2.6567]
[1736449332312,12.19279545,188.32,188.2,12.19279545]
[1736449332522,12.19279545,188.35,188.23,12.19279545]
[1736449332720,2.6552,188.32,188.29,2.6556]
[1736449333013,2.6552,188.32,188.23,12.19279545]
[1736449333409,2.6552,188.32,188.27,2.6557]
[1736449334018,2.6549,188.34,188.3,2.6554]
[1736449334412,17.03279545,188.38,188.3,2.6554]
[1736449334617,17.03279545,188.38,188.26,12.19279545]
[1736449335520,17.03279545,188.38,188.28,2.6556]
[1736449336619,12.19279545,188.37,188.26,12.19279545]
[1736449336826,12.19279545,188.37,188.24,3.0893]
[1736449337418,2.6555,188.3,188.26,2.6559]
[1736449337720,12.19279545,188.34,188.24,3.0893]
[1736449337915,12.19279545,188.34,188.23,2.6563]
[1736449338115,12.19279545,188.31,188.23,2.6563]
[1736449338322,12.19279545,188.31,188.19,12.19279545]
[1736449338923,2.6561,188.26,188.22,2.6564]
[1736449339122,2.6561,188.26,188.19,12.19279545]
[1736449339730,2.6559,188.27,188.23,2.6563]
[1736449341326,12.19279545,188.31,188.23,2.6563]
[1736449341525,12.19279545,188.31,188.19,12.19279545]
[1736449343127,2.656,188.26,188.22,2.6564]
[1736449343427,12.19279545,188.28,188.17,3.0688]
[1736449344126,12.19279545,188.25,188.13,12.19279545]
[1736449344326,12.19279545,188.25,188.13,15.24279545]
[1736449344626,2.6568,188.21,188.13,15.24279545]
[1736449345028,2.6569,188.2,188.17,2.6571]
[1736449345930,2.6571,188.19,188.15,2.6574]
[1736449346726,17.03279545,188.25,188.14,2.6577]
[1736449347127,17.03279545,188.25,188.13,3.05]
[1736449347322,2.6574,188.17,188.13,5.7078]
[1736449348426,2.6574,188.17,188.13,4.225]
[1736449349040,2.6574,188.17,188.14,2.6576]
[1736449353132,12.19279545,188.22,188.11,1.6432]
[1736449353437,12.19279545,188.19,188.07,13.71379545]
[1736449353938,12.19279545,188.19,188.1,2.6582]
[1736449354134,4.84,188.18,188.1,2.6582]
[1736449354336,2.6578,188.14,188.1,2.6582]
[1736449354833,4.84,188.18,188.1,2.6582]
[1736449355036,4.84,188.18,188.07,13.71379545]
[1736449355232,4.84,188.18,188.07,1.521]
[1736449355438,12.19279545,188.16,188.07,1.521]
[1736449355937,2.6582,188.1,188.06,1.4894]
[1736449356138,12.19279545,188.16,188.06,1.4894]
[1736449356330,12.19279545,188.16,188.06,4.1482]
[1736449356740,2.6578,188.13,188.06,4.1482]
[1736449356934,12.19279545,188.13,188.05,2.6589]
[1736449357538,2.6585,188.09,188.05,2.6589]
[1736449358738,2.6581,188.11,188.07,2.6586]
[1736449359141,12.19279545,188.16,188.04,12.19279545]
[1736449359142,4.84,188.15,188.04,12.19279545]
[1736449359644,2.6581,188.11,188.07,2.6586]
[1736449359843,4.84,188.15,188.04,12.19279545]
[1736449360943,4.84,188.15,188.07,12.19279545]
[1736449361443,2.6579,188.13,188.09,2.6584]
[1736449361639,4.84,188.15,188.07,12.19279545]
[1736449362041,4.84,188.15,188.08,2.6585]
[1736449362742,4.84,188.15,188.04,12.19279545]
[1736449363145,4.84,188.15,188.1,2.6581]
[1736449364240,2.6578,188.13,188.1,2.6581]
[1736449369443,17.03279545,188.19,188.12,2.6579]
[1736449369647,12.19279545,188.19,188.08,3.0806]
[1736449369842,12.19279545,188.19,188.08,4.6931]
[1736449370244,2.6574,188.17,188.13,2.6577]
[1736449370647,17.03279545,188.22,188.13,2.6577]
[1736449372248,2.6574,188.16,188.13,2.6577]
[1736449374049,17.03279545,188.25,188.13,12.19279545]
[1736449374743,17.03279545,188.25,188.17,2.6572]
[1736449374948,17.03279545,188.25,188.13,12.19279545]
[1736449375349,2.6568,188.2,188.17,2.6572]
[1736449376850,2.6567,188.22,188.19,2.657]
[1736449377548,17.03279545,188.28,188.16,12.19279545]
[1736449377752,17.03279545,188.28,188.17,3.1056]
[1736449377952,17.03279545,188.28,188.17,4.6244]
[1736449378451,2.6563,188.24,188.21,2.6566]
[1736449384355,2.6559,188.27,188.23,2.6563]
[1736449384560,82.92,188.3,188.23,2.6563]
[1736449386059,87.76,188.3,188.23,2.6563]
[1736449386461,2.6559,188.27,188.23,2.6563]
[1736449386963,12.19279545,188.31,188.19,12.19279545]
[1736449387164,2.6553,188.31,188.22,12.19279545]
[1736449387364,2.6553,188.31,188.26,7.80173002]
[1736449387560,2.6553,188.31,188.27,2.6557]
[1736449387865,10.45673002,188.33,188.28,7.80173002]
[1736449388163,7.80173002,188.36,188.28,7.80173002]
[1736449388359,2.6548,188.35,188.3,7.80173002]
[1736449388663,7.80173002,188.36,188.3,7.80173002]
[1736449388865,4.84,188.37,188.33,2.655]
[1736449389164,7.80173002,188.36,188.3,7.80173002]
[1736449389364,4.84,188.37,188.27,12.18515645]
[1736449390163,2.6547,188.35,188.31,2.6552]
[1736449392968,2.6547,188.35,188.27,12.18515645]
[1736449393169,2.6547,188.35,188.32,2.6551]
[1736449396472,17.02515645,188.39,188.32,2.6551]
[1736449396675,2.6546,188.36,188.32,2.6551]
[1736449397975,17.02515645,188.39,188.32,2.6551]
[1736449398276,2.6547,188.35,188.32,2.6551]
[1736449400072,2.6552,188.32,188.25,2.6561]
[1736449400268,12.18515645,188.36,188.23,12.18515645]
[1736449400573,12.18515645,188.36,188.26,12.18515645]
[1736449400974,12.18515645,188.36,188.3,2.6553]
[1736449401177,17.02515645,188.39,188.26,12.18515645]
[1736449401374,2.6548,188.35,188.31,2.6552]
[1736449401875,2.6548,188.35,188.26,12.18515645]
[1736449402072,2.6548,188.35,188.32,2.655]
[1736449402578,2.6549,188.34,188.26,12.18515645]
[1736449403079,2.6549,188.34,188.3,2.6553]
[1736449404172,2.6549,188.34,188.31,2.6552]
[1736449405180,2.655,188.33,188.26,12.18515645]
[1736449405479,12.18515645,188.36,188.26,12.18515645]
[1736449405681,12.18515645,188.36,188.24,4.7336]
[1736449405877,4.82,188.39,188.24,4.7336]
[1736449405878,12.18515645,188.33,188.24,4.7336]
[1736449406275,2.6559,188.27,188.24,4.7336]
[1736449406676,2.6561,188.25,188.24,4.7336]
[1736449406878,2.6561,188.25,188.24,3.227]
[1736449411385,10.46416566,188.25,188.24,3.227]
[1736449412886,2.656,188.26,188.24,3.227]
[1736449413089,7.80806566,188.27,188.24,3.227]
[1736449414183,2.6561,188.25,188.24,3.227]
[1736449415583,10.46416566,188.25,188.24,3.227]
[1736449417093,2.657,188.19,188.18,1.5679]
[1736449417388,2.657,188.19,188.14,7.80806566]
[1736449417979,7.80806566,188.22,188.14,7.80806566]
[1736449418289,2.6572,188.18,188.14,10.46566566]
[1736449419087,2.6572,188.18,188.14,7.80806566]
[1736449419392,2.6572,188.18,188.15,2.6575]
[1736449421094,7.80806566,188.2,188.14,7.80806566]
[1736449421693,2.6575,188.16,188.12,10.46596566]
[1736449424594,2.657,188.19,188.14,7.80806566]
[1736449424792,7.80806566,188.23,188.18,7.80806566]
[1736449424993,7.80806566,188.25,188.18,7.80806566]
[1736449425194,2.6568,188.21,188.17,2.6572]
[1736449425495,7.80806566,188.23,188.17,2.6572]
[1736449425994,2.6568,188.21,188.17,2.6572]
[1736449426289,7.80806566,188.23,188.12,2.6579]
[1736449426491,2.6572,188.18,188.14,7.80806566]
[1736449426695,7.80806566,188.19,188.14,7.80806566]
[1736449426990,7.80806566,188.19,188.13,2.6578]
[1736449427194,7.80806566,188.17,188.04,60.34481053]
[1736449427496,7.80806566,188.15,188.08,10.46656566]
[1736449427696,2.6578,188.13,188.08,10.46656566]
[1736449427895,7.80806566,188.15,188.08,7.80806566]
[1736449428197,7.80806566,188.15,188.09,2.6583]
[1736449429096,2.6581,188.12,188.09,2.6583]
[1736449431287,12.21347901,188.17,188.05,12.21347901]
[1736449431494,12.21347901,188.14,188.03,5.70516817]
[1736449431694,12.21347901,188.14,188.02,12.21347901]
[1736449431892,1.6239,188.13,187.99,15.34947901]
[1736449432799,2.6588,188.07,188.03,2.6592]
[1736449433498,1.6239,188.13,188.01,2.6594]
[1736449433499,2.659,188.05,188.01,2.6594]
[1736449433697,2.659,188.05,187.99,15.34947901]
[1736449433898,12.21347901,188.08,187.98,1.5564]
[1736449436605,2.6593,188.03,187.99,2.6598]
[1736449438108,12.21347901,188.08,187.98,1.5564]
[1736449438294,4.82,188.1,187.99,12.21347901]
[1736449439003,4.82,188.1,188.01,2.6595]
[1736449439206,4.82,188.1,187.99,12.21347901]
[1736449439507,2.6588,188.07,188.02,2.6593]
[1736449439707,4.82,188.1,188.02,2.6593]
[1736449439907,4.82,188.1,187.99,12.21347901]
[1736449440108,4.82,188.1,188.01,2.6595]
[1736449440512,12.21347901,188.08,187.98,1.5564]
[1736449440708,2.6592,188.04,187.98,1.5564]
[1736449441010,12.21347901,188.08,187.98,1.5564]
[1736449441606,12.21347901,188.08,187.96,12.21347901]
[1736449441915,2.6595,188.02,187.97,2.66]
[1736449442211,2.6595,188.02,187.96,12.21347901]
[1736449442411,2.6597,188.01,187.97,2.66]
[1736449443209,12.21347901,188.05,187.94,60.37523703]
[1736449443512,12.21347901,188.05,187.96,2.6602]
[1736449444206,12.21347901,188.05,187.94,60.37523703]
[1736449444411,12.21347901,188.05,187.95,2.6603]
[1736449444612,12.21347901,188.05,187.94,60.37523703]
[1736449444810,2.6596,188.01,187.96,2.6602]
[1736449445011,12.21347901,188.05,187.96,2.6602]
[1736449445212,2.6598,188.0,187.96,2.6602]
[1736449445413,12.21347901,188.05,187.96,2.6602]
[1736449446208,17.03347901,188.1,187.93,13.78457901]
[1736449446413,2.6592,188.04,187.96,12.21347901]
[1736449446809,2.6588,188.06,187.99,2.6597]
[1736449447117,17.03347901,188.09,187.99,2.6597]
[1736449447613,17.03347901,188.09,187.96,12.21347901]
[1736449448218,2.6591,188.05,187.99,2.6597]
[1736449448419,17.03347901,188.09,187.96,12.21347901]
[1736449448716,12.21347901,188.06,187.94,3.2322]
[1736449448916,12.21347901,188.06,187.94,1.6458]
[1736449449107,12.21347901,188.03,187.93,13.78457901]
[1736449449305,12.21347901,188.03,187.93,1.5711]
[1736449449718,12.21347901,188.03,187.94,2.6604]
[1736449450315,12.21347901,188.0,187.9,12.21347901]
[1736449451018,2.6602,187.96,187.9,12.21347901]
[1736449452117,2.6602,187.96,187.92,2.6607]
[1736449452319,12.21347901,188.0,187.87,12.21347901]
[1736449452320,2.6605,187.95,187.87,12.21347901]
[1736449452520,12.21347901,188.0,187.87,12.21347901]
[1736449452720,12.21347901,188.0,187.91,2.6609]
[1736449453920,2.6605,187.95,187.91,2.6609]
[1736449456017,12.21347901,188.0,187.91,2.6609]
[1736449456822,2.6605,187.95,187.91,2.6609]
[1736449457022,12.21347901,188.0,187.87,12.21347901]
[1736449457228,12.21347901,188.0,187.9,12.21347901]
[1736449457535,4.82,188.02,187.94,2.6605]
[1736449457536,7.82894582,187.99,187.94,2.6605]
[1736449457826,7.82894582,187.99,187.93,7.82894582]
[1736449458524,2.6601,187.98,187.93,10.48954582]
[1736449458721,7.82894582,187.99,187.93,2.6606]
[1736449459124,2.6602,187.97,187.93,2.6606]
[1736449459629,7.82894582,187.99,187.93,2.6606]
[1736449459830,2.6603,187.96,187.93,2.6606]
[1736449460325,83.0,188.09,187.95,7.82894582]
[1736449460522,8.0397,188.08,187.95,7.82894582]
[1736449460728,7.82894582,188.03,187.95,7.82894582]
[1736449461427,12.22960072,188.04,187.97,2.6601]
[1736449462130,2.6597,188.01,187.97,2.6601]
[1736449462725,2.6597,188.01,187.98,2.6599]
[1736449463632,12.22960072,188.04,187.92,12.22960072]
[1736449463633,2.6591,188.04,188.01,2.6595]
[1736449463829,4.82,188.06,187.95,12.22960072]
[1736449464234,2.6592,188.03,187.99,2.6597]
[1736449464431,2.6592,188.03,187.95,12.22960072]
[1736449465736,2.6592,188.03,188.0,2.6596]
[1736449467643,17.04960072,188.07,187.94,1.5922]
[1736449467835,12.22960072,188.04,187.94,1.5922]
[1736449468236,2.6598,188.0,187.94,1.5922]
[1736449468743,2.6598,188.0,187.97,2.66]
[1736449468943,2.6596,188.01,187.95,12.22960072]
[1736449469141,17.04960072,188.07,187.95,12.22960072]
[1736449469942,2.6592,188.04,187.99,2.6597]
[1736449470241,17.04960072,188.07,187.99,2.6597]
[1736449471345,2.6593,188.03,187.99,2.6597]
[1736449472544,12.22960072,188.04,187.96,2.6602]
[1736449472746,12.22960072,188.04,187.94,1.5922]
[1736449472939,4.82,188.07,187.93,3.0369]
[1736449472940,12.22960072,188.01,187.93,3.0369]
[1736449473144,2.6602,187.97,187.93,4.209]
[1736449473446,12.22960072,187.97,187.85,12.42619072]
[1736449473643,2.6606,187.94,187.86,1.538]
[1736449474043,2.6606,187.94,187.91,2.6608]
[1736449474237,2.6604,187.95,187.88,12.22960072]
[1736449474639,2.6604,187.95,187.92,2.6607]
[1736449475750,4.82,188.0,187.91,12.22960072]
[1736449476244,4.82,188.0,187.92,1.5992]
[1736449476945,4.82,188.0,187.92,3.1561]
[1736449477547,2.6599,187.99,187.96,2.6602]
[1736449480250,4.82,188.0,187.92,3.1561]
[1736449480846,4.82,188.0,187.92,5.8168]
[1736449481345,2.6603,187.96,187.92,5.8168]
[1736449481542,2.6603,187.96,187.92,4.2599]
[1736449481946,4.82,188.0,187.92,4.2599]
[1736449482146,4.82,188.0,187.87,1.5267]
[1736449482345,4.82,188.0,187.89,2.6612]
[1736449482346,12.22960072,187.98,187.89,2.6612]
[1736449482549,2.6608,187.92,187.89,2.6612]
[1736449482746,12.22960072,187.95,187.86,4.1996]
[1736449483250,2.6612,187.9,187.86,1.538]
[1736449483554,12.22960072,187.95,187.87,2.6615]
[1736449483750,12.22960072,187.95,187.84,12.22960072]
[1736449483953,12.22960072,187.95,187.84,14.89140072]
[1736449484254,12.22960072,187.95,187.84,2.6618]
[1736449484455,2.6614,187.88,187.84,2.6618]
[1736449485353,2.6612,187.9,187.87,2.6615]
[1736449486259,2.6612,187.89,187.85,2.85829]
[1736449487257,2.6614,187.88,187.85,2.85829]
[1736449490161,2.6613,187.89,187.86,2.6616]
[1736449490362,12.22960072,187.95,187.85,0.19659]
[1736449490559,17.04960072,187.95,187.85,0.19659]
[1736449490759,4.82,187.95,187.85,0.19659]
[1736449491364,12.22960072,188.1,187.87,12.22960072]
[1736449491365,2.6603,187.96,187.87,12.22960072]
[1736449491555,4.82,188.01,187.9,12.22960072]
[1736449491955,2.66,187.98,187.94,2.6605]
[1736449492159,2.66,187.98,187.91,1.5395]
[1736449492370,12.22960072,188.02,187.91,1.5395]
[1736449492763,2.6598,187.99,187.96,2.6601]
[1736449501262,4.82,188.04,187.91,1.5395]
[1736449501472,12.22960072,188.05,187.93,12.22960072]
[1736449501771,4.82,188.06,187.96,12.22960072]
[1736449501969,7.9105,188.07,187.96,12.22960072]
[1736449502364,2.6591,188.04,187.99,2.6598]
[1736449502571,2.6591,188.04,187.96,12.22960072]
[1736449502763,4.82,188.07,187.96,12.22960072]
[1736449502963,4.82,188.07,187.97,3.1607]
[1736449504269,2.6591,188.04,187.99,2.6598]
[1736449504571,4.82,188.07,187.97,3.1607]
[1736449505472,2.6589,188.06,188.0,2.6597]
[1736449505673,2.6589,188.06,187.97,3.1607]
[1736449506073,2.6589,188.06,188.02,2.6593]
[1736449506471,12.22960072,188.11,187.99,12.22960072]
[1736449506672,160.73379,188.37,188.05,12.22960072]
[1736449506866,3.2127,188.22,188.06,1.495]
[1736449507069,2.6575,188.16,188.08,12.22960072]
[1736449507270,12.22960072,188.19,188.08,12.22960072]
[1736449507466,15.44230072,188.22,188.09,1.4859]
[1736449507671,15.44230072,188.22,188.15,2.6575]
[1736449507877,20.26230072,188.22,188.15,2.6575]
[1736449508170,2.6571,188.18,188.11,12.22960072]
[1736449509075,2.6571,188.18,188.14,2.6577]
[1736449509571,17.04960072,188.22,188.11,12.22960072]
[1736449509765,17.04960072,188.25,188.11,12.22960072]
[1736449509966,17.04960072,188.25,188.14,12.22960072]
[1736449510170,3.1533,188.28,188.22,2.6564]
[1736449510171,2.656,188.27,188.22,2.6564]
[1736449510369,12.22960072,188.28,188.17,12.22960072]
[1736449510583,12.22960072,188.31,188.18,1.5463]
[1736449511177,4.82,188.33,188.18,1.5463]
[1736449511178,12.22960072,188.28,188.18,1.5463]
[1736449511479,12.22960072,188.28,188.15,3.0267]
[1736449511480,12.22960072,188.25,188.15,3.0267]
[1736449511683,12.22960072,188.22,188.15,3.0267]
[1736449512078,2.6568,188.21,188.15,3.0267]
[1736449512277,12.22960072,188.22,188.15,3.0267]
[1736449512676,17.04960072,188.25,188.15,3.0267]
[1736449513182,12.22960072,188.28,188.16,12.22960072]
[1736449513375,17.04960072,188.28,188.16,12.22960072]
[1736449514080,12.22960072,188.25,188.15,3.0267]
[1736449515181,2.6565,188.23,188.18,2.6571]
[1736449515381,17.04960072,188.28,188.15,3.0267]
[1736449515592,12.22960072,188.28,188.21,2.6566]
[1736449515882,12.22960072,188.28,188.16,12.22960072]
[1736449516077,2.6561,188.25,188.2,2.6568]
[1736449516279,12.22960072,188.28,188.16,12.22960072]
[1736449516680,2.6563,188.24,188.19,2.6568]
[1736449516985,12.22960072,188.28,188.16,12.22960072]
[1736449517385,17.04960072,188.28,188.16,12.22960072]
[1736449518687,17.04960072,188.28,188.22,2.6565]
[1736449520086,2.656,188.26,188.22,2.6565]
[1736449520282,17.04960072,188.28,188.16,12.22960072]
[1736449520487,17.04960072,188.28,188.23,2.6564]
[1736449520686,17.04960072,188.28,188.16,12.22960072]
[1736449520887,17.04960072,188.28,188.21,2.6566]
[1736449521082,17.04960072,188.28,188.16,12.22960072]
[1736449521790,2.656,188.26,188.22,2.6564]
[1736449522090,12.22960072,188.31,188.19,12.22960072]
[1736449522278,12.22960072,188.31,188.2,1.5511]
[1736449522786,12.22960072,188.28,188.2,1.5511]
[1736449522987,2.6561,188.25,188.22,2.6565]
[1736449523581,12.22960072,188.28,188.2,1.5511]
[1736449523787,12.22960072,188.31,188.23,2.6564]
[1736449524087,2.6559,188.27,188.23,2.6564]
[1736449524287,12.22960072,188.31,188.2,1.5511]
[1736449524491,12.22960072,188.31,188.24,2.6562]
[1736449524788,12.22960072,188.28,188.2,1.5511]
[1736449525386,2.6561,188.26,188.2,1.5511]
[1736449525590,12.22960072,188.31,188.2,1.5511]
[1736449527088,12.22960072,188.31,188.26,2.6559]
[1736449527089,2.6555,188.3,188.26,2.6559]
[1736449528493,2.6552,188.32,188.22,12.22960072]
[1736449528698,190.0,188.52,188.3,12.22960072]
[1736449528994,12.22960072,188.47,188.33,12.22960072]
[1736449529290,12.22960072,188.47,188.34,1.637]
[1736449529791,14.88310072,188.44,188.34,1.637]
[1736449529982,12.22960072,188.41,188.34,1.637]
[1736449530182,12.22960072,188.38,188.29,4.82]
[1736449530382,2.6545,188.37,188.28,1.6338]
[1736449530590,12.22960072,188.38,188.28,1.6338]
[1736449530789,14.88390072,188.38,188.33,2.6549]
[1736449531092,14.88390072,188.38,188.28,1.6338]
[1736449531893,2.6543,188.38,188.28,1.6338]
[1736449532187,2.6542,188.39,188.34,2.6547]
[1736449532391,12.22960072,188.41,188.34,2.6547]
[1736449532584,12.22960072,188.41,188.28,1.6338]
[1736449532991,12.22960072,188.41,188.35,2.6546]
[1736449533690,12.22960072,188.41,188.28,1.6338]
[1736449534093,12.22960072,188.38,188.28,1.6338]
[1736449534288,2.6549,188.34,188.3,2.6554]
[1736449535691,12.22960072,188.38,188.33,2.655]
[1736449535988,15.28890072,188.41,188.28,1.6338]
[1736449536294,2.6543,188.39,188.34,2.6547]
[1736449536591,2.6543,188.39,188.3,12.22960072]
[1736449537188,2.6543,188.39,188.34,2.6548]
[1736449537391,2.6543,188.39,188.3,12.22960072]
[1736449537595,1.5477,188.43,188.3,12.22960072]
[1736449537794,1.5477,188.43,188.37,2.6544]
[1736449537995,2.6539,188.41,188.37,2.6544]